fUST/lending_fUST_20241114
["ID","MTS","AMOUNT","RATE_DAILY","PERIOD"]
[342224757,1731599446070,-979.57,0.00016438,2]
[342224758,1731599446080,-979.57,0.00016438,2]
[342224759,1731599446090,-979.57,0.00016438,2]
[342224760,1731599446100,-979.57,0.00016438,2]
[342224761,1731599446109,-979.57,0.00016438,2]
[342224762,1731599446123,-979.57,0.00016438,2]
[342224763,1731599446132,-979.57,0.00016438,2]
[342224764,1731599446142,-979.57,0.00016438,2]
[342224766,1731599446152,-979.57,0.00016438,2]
[342224768,1731599446162,-979.57,0.00016438,2]
[342224769,1731599446171,-500.0,0.00016438,2]
[342224770,1731599446181,-979.57,0.00016438,2]
[342224771,1731599446193,-979.57,0.00016438,2]
[342224772,1731599446204,-979.57,0.00016438,2]
[342224773,1731599446214,-979.57,0.00016438,2]
[342224774,1731599446223,-979.57,0.00016438,2]
[342224776,1731599446234,-1278.76,0.00016438,2]
[342224778,1731599446244,-500.0,0.00016438,2]
[342224780,1731599446254,-500.0,0.00016438,2]
[342224783,1731599446264,-500.0,0.00016438,2]
[342224786,1731599446275,-502.90988778,0.00016438,2]
[342224789,1731599446285,-500.0,0.00016438,2]
[342224791,1731599446295,-500.0,0.00016438,2]
[342224792,1731599446305,-500.0,0.00016438,2]
[342224794,1731599446314,-500.0,0.00016438,2]
[342224798,1731599446324,-542.83,0.00016438,2]
[342224801,1731599446333,-500.0,0.00016438,2]
[342224803,1731599446343,-500.0,0.00016438,2]
[342224805,1731599446352,-500.0,0.00016438,2]
[342224807,1731599446362,-771.59,0.00016438,2]
[342224809,1731599446376,-500.0,0.00016438,2]
[342224811,1731599446386,-500.0,0.00016438,2]
[342224812,1731599446396,-621.67,0.00016438,2]
[342224815,1731599446405,-522.85349665,0.00016438,2]
[342224817,1731599446415,-500.0,0.00016438,2]
[342224819,1731599446424,-500.0,0.00016438,2]
[342224820,1731599446433,-500.0,0.00016438,2]
[342224821,1731599446443,-500.0,0.00016438,2]
[342224822,1731599446452,-500.0,0.00016438,2]
[342224823,1731599446462,-500.0,0.00016438,2]
[342224824,1731599446471,-601.04,0.00016438,2]
[342224826,1731599446481,-500.0,0.00016438,2]
[342224827,1731599446490,-500.0,0.00016438,2]
[342224828,1731599446499,-500.0,0.00016438,2]
[342224829,1731599446510,-233.44432462,0.00016438,2]
[342224830,1731599446520,-500.0,0.00016438,2]
[342224831,1731599446530,-500.0,0.00016438,2]
[342224832,1731599446540,-521.21273069,0.00016438,2]
[342224833,1731599446550,-865.02,0.00016438,2]
[342224835,1731599446560,-500.0,0.00016438,2]
[342224836,1731599446569,-500.0,0.00016438,2]
[342224837,1731599446579,-500.0,0.00016438,2]
[342224838,1731599446590,-500.0,0.00016438,2]
[342224839,1731599446600,-500.0,0.00016438,2]
[342224840,1731599446610,-322.27847085,0.00016438,2]
[342224841,1731599446623,-500.0,0.00016438,2]
[342224842,1731599446635,-500.0,0.00016438,2]
[342224844,1731599446645,-500.0,0.00016438,2]
[342224845,1731599446655,-500.0,0.00016438,2]
[342224846,1731599446664,-829.95,0.00016438,2]
[342224847,1731599446674,-500.0,0.00016438,2]
[342224848,1731599446684,-500.0,0.00016438,2]
[342224849,1731599446694,-500.0,0.00016438,2]
[342224850,1731599446704,-500.0,0.00016438,2]
[342224851,1731599446714,-635.7,0.00016438,2]
[342224852,1731599446723,-500.0,0.00016438,2]
[342224853,1731599446732,-500.0,0.00016438,2]
[342224854,1731599446741,-176.25116655,0.00016438,2]
[342224855,1731599446751,-576.10342839,0.00016438,2]
[342224856,1731599446760,-456.85139796,0.00016438,2]
[342224857,1731599446770,-500.0,0.00016438,2]
[342224858,1731599446779,-500.0,0.00016438,2]
[342224859,1731599446789,-500.0,0.00016438,2]
[342224860,1731599446798,-550.6022231,0.00016438,2]
[342224861,1731599446808,-500.0,0.00016438,2]
[342224862,1731599446818,-500.0,0.00016438,2]
[342224863,1731599446828,-402.85499731,0.00016438,2]
[342224864,1731599447002,-97.14500269,0.00016438,2]
[342224865,1731599447013,-500.0,0.00016438,2]
[342224866,1731599447023,-511.16021568,0.00016438,2]
[342224867,1731599447032,-500.0,0.00016438,2]
[342224868,1731599447043,-500.70919725,0.00016438,2]
[342224869,1731599447052,-266.50181013,0.00016438,2]
[342224870,1731599447229,-233.49818987,0.00016438,2]
[342224871,1731599447241,-500.0,0.00016438,2]
[342224872,1731599447251,-500.0,0.00016438,2]
[342224873,1731599447261,-500.0,0.00016438,2]
[342224874,1731599447270,-500.0,0.00016438,2]
[342224875,1731599447282,-564.4555163,0.00016438,2]
[342224876,1731599447291,-1105.34,0.00016438,2]
[342224877,1731599447300,-500.0,0.00016438,2]
[342224878,1731599447310,-500.0,0.00016438,2]
[342224879,1731599447320,-500.0,0.00016438,2]
[342224880,1731599447329,-500.0,0.00016438,2]
[342224881,1731599447339,-500.0,0.00016438,2]
[342224882,1731599447348,-500.0,0.00016438,2]
[342224883,1731599447358,-500.0,0.00016438,2]
[342224884,1731599447367,-500.0,0.00016438,2]
[342224885,1731599447385,-168.97775879,0.00016438,2]
[342224886,1731599447395,-500.0,0.00016438,2]
[342224887,1731599447405,-500.0,0.00016438,2]
[342224888,1731599447415,-500.0,0.00016438,2]
[342224889,1731599447425,-203.67480007,0.00016438,2]
[342224890,1731599447435,-500.0,0.00016438,2]
[342224891,1731599447444,-500.0,0.00016438,2]
[342224892,1731599447454,-500.0,0.00016438,2]
[342224893,1731599447463,-500.0,0.00016438,2]
[342224894,1731599447472,-500.0,0.00016438,2]
[342224895,1731599447482,-500.0,0.00016438,2]
[342224896,1731599447492,-536.88,0.00016438,2]
[342224897,1731599447503,-500.0,0.00016438,2]
[342224898,1731599447512,-500.0,0.00016438,2]
[342224899,1731599447522,-500.0,0.00016438,2]
[342224900,1731599447532,-500.0,0.00016438,2]
[342224901,1731599447542,-500.0,0.00016438,2]
[342224902,1731599447552,-624.48,0.00016438,2]
[342224903,1731599447561,-500.0,0.00016438,2]
[342224904,1731599447570,-500.0,0.00016438,2]
[342224905,1731599447580,-500.0,0.00016438,2]
[342224906,1731599447590,-233.5868231,0.00016438,2]
[342224907,1731599447599,-500.0,0.00016438,2]
[342224908,1731599447609,-465.9339106,0.00016438,2]
[342224909,1731599447618,-500.0,0.00016438,2]
[342224910,1731599447632,-500.0,0.00016438,2]
[342224911,1731599447642,-500.0,0.00016438,2]
[342224912,1731599447651,-500.0,0.00016438,2]
[342224913,1731599447660,-10931.29,0.00016438,2]
[342224914,1731599447670,-500.0,0.00016438,2]
[342224915,1731599447679,-324.32561382,0.00016438,2]
[342224916,1731599447688,-500.0,0.00016438,2]
[342224917,1731599447698,-500.0,0.00016438,2]
[342224918,1731599447708,-153.19472958,0.00016438,2]
[342224919,1731599447719,-500.0,0.00016438,2]
[342224920,1731599447728,-500.0,0.00016438,2]
[342224921,1731599447738,-500.0,0.00016438,2]
[342224922,1731599447748,-500.0,0.00016438,2]
[342224923,1731599447758,-500.0,0.00016438,2]
[342224924,1731599447768,-1193.79,0.00016438,2]
[342224925,1731599447777,-288.14523364,0.00016438,2]
[342224926,1731599448044,-747.89774787,0.00016438,2]
[342224927,1731599448057,-157.74701849,0.00016438,2]
[342224928,1731599448068,-1193.79,0.00016438,2]
[342224929,1731599448078,-1193.79,0.00016438,2]
[342224930,1731599448088,-500.0,0.00016438,2]
[342224931,1731599448098,-1193.79,0.00016438,2]
[342224932,1731599448109,-500.0,0.00016438,2]
[342224933,1731599448119,-1193.79,0.00016438,2]
[342224934,1731599448133,-1193.79,0.00016438,2]
[342224935,1731599448143,-1193.79,0.00016438,2]
[342224936,1731599448154,-543.74855795,0.00016438,2]
[342224937,1731599448169,-650.04144205,0.00016438,2]
[342224938,1731599448180,-1193.79,0.00016438,2]
[342224939,1731599448190,-1193.79,0.00016438,2]
[342224940,1731599448210,-1193.79,0.00016438,2]
[342224941,1731599448231,-1193.79,0.00016438,2]
[342224942,1731599448247,-1193.79,0.00016438,2]
[342224943,1731599448257,-200.0,0.00016438,2]
[342224944,1731599448267,-1193.79,0.00016438,2]
[342224945,1731599448277,-1193.79,0.00016438,2]
[342224946,1731599448288,-1193.79,0.00016438,2]
[342224947,1731599448298,-500.0,0.00016438,2]
[342224948,1731599448309,-500.0,0.00016438,2]
[342224949,1731599448319,-500.0,0.00016438,2]
[342224950,1731599448328,-1193.79,0.00016438,2]
[342224951,1731599448338,-1193.79,0.00016438,2]
[342224952,1731599448348,-1271.58,0.00016438,2]
[342224953,1731599448358,-591.41,0.00016438,2]
[342224954,1731599448368,-500.0,0.00016438,2]
[342224955,1731599448384,-500.0,0.00016438,2]
[342224956,1731599448394,-238.51352149,0.00016438,2]
[342224957,1731599448404,-500.0,0.00016438,2]
[342224958,1731599448414,-543.31492239,0.00016438,2]
[342224959,1731599448427,-500.0,0.00016438,2]
[342224960,1731599448437,-500.0,0.00016438,2]
[342224961,1731599448448,-500.0,0.00016438,2]
[342224962,1731599448458,-500.0,0.00016438,2]
[342224963,1731599448468,-500.0,0.00016438,2]
[342224964,1731599448478,-500.0,0.00016438,2]
[342224965,1731599448487,-500.0,0.00016438,2]
[342224966,1731599448497,-501.74739586,0.00016438,2]
[342224967,1731599448507,-500.0,0.00016438,2]
[342224968,1731599448517,-1523.44,0.00016438,2]
[342224969,1731599448527,-511.57844434,0.00016438,2]
[342224970,1731599448537,-500.0,0.00016438,2]
[342224971,1731599448547,-154.5053,0.00016438,2]
[342224972,1731599448557,-710.37,0.00016438,2]
[342224973,1731599448567,-500.0,0.00016438,2]
[342224974,1731599448579,-500.0,0.00016438,2]
[342224975,1731599448589,-500.0,0.00016438,2]
[342224976,1731599448599,-500.0,0.00016438,2]
[342224977,1731599448609,-500.0,0.00016438,2]
[342224978,1731599448619,-517.66741829,0.00016438,2]
[342224979,1731599448636,-501.33756471,0.00016438,2]
[342224980,1731599448646,-537.64,0.00016438,2]
[342224981,1731599448655,-500.0,0.00016438,2]
[342224982,1731599448666,-501.31053959,0.00016438,2]
[342224983,1731599448675,-515.40586148,0.00016438,2]
[342224984,1731599448686,-589.97,0.00016438,2]
[342224985,1731599448696,-589.97,0.00016438,2]
[342224986,1731599448707,-589.97,0.00016438,2]
[342224987,1731599448717,-589.97,0.00016438,2]
[342224988,1731599448727,-589.97,0.00016438,2]
[342224989,1731599448737,-589.97,0.00016438,2]
[342224990,1731599448748,-589.97,0.00016438,2]
[342224991,1731599448758,-589.97,0.00016438,2]
[342224992,1731599448768,-589.97,0.00016438,2]
[342224993,1731599448779,-589.97,0.00016438,2]
[342224994,1731599448789,-589.97,0.00016438,2]
[342224995,1731599448800,-589.97,0.00016438,2]
[342224996,1731599448810,-589.97,0.00016438,2]
[342224997,1731599448820,-589.97,0.00016438,2]
[342224998,1731599448830,-589.97,0.00016438,2]
[342224999,1731599448841,-589.97,0.00016438,2]
[342225000,1731599448851,-589.97,0.00016438,2]
[342225001,1731599448861,-589.97,0.00016438,2]
[342225002,1731599448872,-500.0,0.00016438,2]
[342225003,1731599448888,-589.97,0.00016438,2]
[342225004,1731599448898,-589.97,0.00016438,2]
[342225005,1731599448908,-589.97,0.00016438,2]
[342225006,1731599448918,-589.97,0.00016438,2]
[342225007,1731599448928,-589.97,0.00016438,2]
[342225008,1731599448937,-590.15848461,0.00016438,2]
[342225009,1731599448947,-500.0,0.00016438,2]
[342225010,1731599448956,-500.0,0.00016438,2]
[342225011,1731599448967,-500.0,0.00016438,2]
[342225012,1731599448977,-500.0,0.00016438,2]
[342225013,1731599448986,-500.0,0.00016438,2]
[342225014,1731599448996,-500.0,0.00016438,2]
[342225015,1731599449006,-500.0,0.00016438,2]
[342225016,1731599449016,-231.71432801,0.00016438,2]
[342225017,1731599449027,-500.0,0.00016438,2]
[342225018,1731599449037,-556.79,0.00016438,2]
[342225019,1731599449047,-500.0,0.00016438,2]
[342225020,1731599449057,-500.0,0.00016438,2]
[342225021,1731599449066,-500.0,0.00016438,2]
[342225022,1731599449076,-1964.1,0.00016438,2]
[342225023,1731599449085,-116.91612082,0.00016438,2]
[342225024,1731599449099,-228.09043148,0.00016438,2]
[342225025,1731599449109,-667.96,0.00016438,2]
[342225026,1731599449118,-500.0,0.00016438,2]
[342225027,1731599449134,-500.0,0.00016438,2]
[342225028,1731599449145,-500.0,0.00016438,2]
[342225029,1731599449155,-500.0,0.00016438,2]
[342225030,1731599449164,-1136.64,0.00016438,2]
[342225031,1731599449174,-500.0,0.00016438,2]
[342225032,1731599449183,-500.0,0.00016438,2]
[342225033,1731599449193,-1107.30956856,0.00016438,2]
[342225034,1731599449212,-1501.69043144,0.00016438,2]
[342225035,1731599449222,-500.0,0.00016438,2]
[342225036,1731599449233,-941.38,0.00016438,2]
[342225037,1731599449244,-500.0,0.00016438,2]
[342225038,1731599449253,-577.51,0.00016438,2]
[342225039,1731599449262,-503.0840705,0.00016438,2]
[342225040,1731599449272,-609.92,0.00016438,2]
[342225041,1731599449283,-500.0,0.00016438,2]
[342225042,1731599449292,-500.0,0.00016438,2]
[342225043,1731599449303,-500.0,0.00016438,2]
[342225044,1731599449313,-500.0,0.00016438,2]
[342225045,1731599449322,-616.66,0.00016438,2]
[342225046,1731599449332,-500.0,0.00016438,2]
[342225047,1731599449342,-500.0,0.00016438,2]
[342225048,1731599449351,-500.0,0.00016438,2]
[342225049,1731599449360,-835.43,0.00016438,2]
[342225050,1731599449370,-686.85,0.00016438,2]
[342225051,1731599449384,-500.0,0.00016438,2]
[342225052,1731599449394,-381.7199356,0.00016438,2]
[342225053,1731599449404,-543.1,0.00016438,2]
[342225054,1731599449414,-521.58,0.00016438,2]
[342225055,1731599449424,-500.0,0.00016438,2]
[342225056,1731599449434,-500.0,0.00016438,2]
[342225057,1731599449444,-500.0,0.00016438,2]
[342225058,1731599449453,-500.0,0.00016438,2]
[342225059,1731599449463,-500.0,0.00016438,2]
[342225060,1731599449473,-515.54,0.00016438,2]
[342225061,1731599449483,-500.0,0.00016438,2]
[342225062,1731599449492,-500.0,0.00016438,2]
[342225063,1731599449502,-500.0,0.00016438,2]
[342225064,1731599449512,-500.0,0.00016438,2]
[342225065,1731599449522,-3163.21,0.00016438,2]
[342225066,1731599449532,-535.3547862,0.00016438,2]
[342225067,1731599449542,-500.0,0.00016438,2]
[342225068,1731599449552,-317.85516768,0.00016438,2]
[342225069,1731599449562,-500.0,0.00016438,2]
[342225070,1731599449572,-500.0,0.00016438,2]
[342225071,1731599449582,-4978.6,0.00016438,2]
[342225072,1731599449592,-500.0,0.00016438,2]
[342225073,1731599449602,-500.0,0.00016438,2]
[342225074,1731599449612,-500.0,0.00016438,2]
[342225075,1731599449625,-500.0,0.00016438,2]
[342225076,1731599449635,-500.0,0.00016438,2]
[342225077,1731599449646,-677.56,0.00016438,2]
[342225078,1731599449656,-500.0,0.00016438,2]
[342225079,1731599449666,-500.0,0.00016438,2]
[342225080,1731599449676,-1330.38,0.00016438,2]
[342225081,1731599449687,-500.0,0.00016438,2]
[342225082,1731599449696,-500.0,0.00016438,2]
[342225083,1731599449707,-361.64733493,0.00016438,2]
[342225084,1731599449716,-577.42854793,0.00016438,2]
[342225085,1731599449726,-4800.38,0.00016438,2]
[342225086,1731599449736,-504.33385733,0.00016438,2]
[342225087,1731599449745,-500.0,0.00016438,2]
[342225088,1731599449755,-4558.83,0.00016438,2]
[342225089,1731599449764,-500.0,0.00016438,2]
[342225090,1731599449774,-501.24089815,0.00016438,2]
[342225091,1731599449783,-500.0,0.00016438,2]
[342225092,1731599449792,-766.67,0.00016438,2]
[342225093,1731599449802,-564.03,0.00016438,2]
[342225094,1731599449812,-500.0,0.00016438,2]
[342225095,1731599449822,-500.0,0.00016438,2]
[342225096,1731599449832,-511.5680781,0.00016438,2]
[342225097,1731599449841,-500.0,0.00016438,2]
[342225098,1731599449850,-1254.19,0.00016438,2]
[342225099,1731599449859,-500.0,0.00016438,2]
[342225100,1731599449869,-505.15797185,0.00016438,2]
[342225101,1731599449882,-757.5,0.00016438,2]
[342225102,1731599449892,-500.0,0.00016438,2]
[342225103,1731599449902,-500.0,0.00016438,2]
[342225104,1731599449911,-560.04,0.00016438,2]
[342225105,1731599449921,-500.0,0.00016438,2]
[342225106,1731599449931,-500.0,0.00016438,2]
[342225107,1731599449940,-500.0,0.00016438,2]
[342225108,1731599449950,-500.0,0.00016438,2]
[342225109,1731599449960,-500.0,0.00016438,2]
[342225110,1731599449969,-845.7,0.00016438,2]
[342225111,1731599449978,-500.0,0.00016438,2]
[342225112,1731599449988,-500.0,0.00016438,2]
[342225113,1731599449998,-500.0,0.00016438,2]
[342225114,1731599450007,-500.0,0.00016438,2]
[342225115,1731599450017,-500.0,0.00016438,2]
[342225116,1731599450027,-500.0,0.00016438,2]
[342225117,1731599450037,-4291.31,0.00016438,2]
[342225118,1731599450046,-500.0,0.00016438,2]
[342225119,1731599450055,-1877.39226637,0.00016458,2]
[342225120,1731599450065,-504.44464,0.00016473,2]
[342225121,1731599450074,-500.0,0.00016473,2]
[342225122,1731599450084,-500.0,0.00016473,2]
[342225123,1731599450093,-500.0,0.00016473,2]
[342225124,1731599450102,-539.98947699,0.00016473,2]
[342225125,1731599450114,-500.0,0.00016473,2]
[342225126,1731599450128,-500.0,0.00016473,2]
[342225127,1731599450138,-500.0,0.00016473,2]
[342225128,1731599450147,-500.0,0.00016473,2]
[342225129,1731599450157,-302.36637322,0.00016473,2]
[342225130,1731599450167,-500.0,0.00016473,2]
[342225131,1731599450177,-500.0,0.00016473,2]
[342225132,1731599450186,-1877.39226637,0.00016579,2]
[342225133,1731599450197,-1877.39226637,0.00016699,2]
[342225134,1731599450208,-979.57,0.00016711,2]
[342225135,1731599450218,-979.57,0.00016711,2]
[342225136,1731599450227,-979.57,0.00016711,2]
[342225137,1731599450238,-979.57,0.00016711,2]
[342225138,1731599450247,-979.67387333,0.00016711,2]
[342225139,1731599450257,-1193.79,0.00016711,2]
[342225140,1731599450267,-1193.79,0.00016711,2]
[342225141,1731599450277,-1193.79,0.00016711,2]
[342225142,1731599450288,-1193.79,0.00016711,2]
[342225143,1731599450298,-1193.94435928,0.00016711,2]
[342225144,1731599450307,-510.12513158,0.00016712,2]
[342225145,1731599450316,-500.0,0.00016712,2]
[342225146,1731599450326,-500.0,0.00016712,2]
[342225147,1731599450335,-500.0,0.00016712,2]
[342225148,1731599450345,-1655.2,0.00016712,2]
[342225149,1731599450355,-500.0,0.00016712,2]
[342225150,1731599450365,-492.56461512,0.00016712,2]
[342225151,1731599450377,-500.0,0.00016712,2]
[342225152,1731599450387,-500.0,0.00016712,2]
[342225153,1731599450396,-562.04,0.00016712,2]
[342225154,1731599450407,-500.0,0.00016712,2]
[342225155,1731599450417,-192.68528253,0.00016712,2]
[342225156,1731599450427,-500.0,0.00016712,2]
[342225157,1731599450438,-500.0,0.00016712,2]
[342225158,1731599450448,-500.0,0.00016712,2]
[342225159,1731599450457,-500.0,0.00016712,2]
[342225160,1731599450466,-500.0,0.00016712,2]
[342225161,1731599450476,-500.0,0.00016712,2]
[342225162,1731599450486,-503.37673088,0.00016712,2]
[342225163,1731599450496,-413.93482659,0.00016712,2]
[342225164,1731599450507,-500.0,0.00016712,2]
[342225165,1731599450517,-500.0,0.00016712,2]
[342225166,1731599450527,-500.0,0.00016712,2]
[342225167,1731599450538,-500.0,0.00016712,2]
[342225168,1731599450548,-500.0,0.00016712,2]
[342225169,1731599450558,-500.0,0.00016712,2]
[342225170,1731599450567,-500.0,0.00016712,2]
[342225171,1731599450576,-500.0,0.00016712,2]
[342225172,1731599450586,-528.20255162,0.00016712,2]
[342225173,1731599450597,-500.0,0.00016712,2]
[342225174,1731599450734,-500.0,0.00016712,2]
[342225175,1731599450744,-500.0,0.00016712,2]
[342225176,1731599450754,-500.0,0.00016712,2]
[342225177,1731599450764,-500.0,0.00016712,2]
[342225178,1731599450774,-637.54,0.00016712,2]
[342225179,1731599450783,-500.0,0.00016712,2]
[342225180,1731599450792,-500.0,0.00016712,2]
[342225181,1731599450802,-500.0,0.00016712,2]
[342225182,1731599450811,-500.0,0.00016712,2]
[342225183,1731599450822,-507.75343669,0.00016712,2]
[342225184,1731599450832,-500.0,0.00016712,2]
[342225185,1731599450841,-500.0,0.00016712,2]
[342225186,1731599450851,-500.0,0.00016712,2]
[342225187,1731599450860,-500.0,0.00016712,2]
[342225188,1731599450870,-500.0,0.00016712,2]
[342225189,1731599450885,-500.0,0.00016712,2]
[342225190,1731599450895,-500.0,0.00016712,2]
[342225191,1731599450904,-500.0,0.00016712,2]
[342225192,1731599450914,-500.0,0.00016712,2]
[342225193,1731599450924,-500.0,0.00016712,2]
[342225194,1731599450934,-210.30849333,0.00016712,2]
[342225195,1731599450944,-500.0,0.00016712,2]
[342225196,1731599450954,-211.88321432,0.00016712,2]
[342225197,1731599450963,-500.0,0.00016712,2]
[342225198,1731599450973,-500.0,0.00016712,2]
[342225199,1731599450983,-500.0,0.00016712,2]
[342225200,1731599450992,-507.54423929,0.00016712,2]
[342225201,1731599451002,-500.0,0.00016712,2]
[342225202,1731599451012,-500.0,0.00016712,2]
[342225203,1731599451021,-522.28,0.00016712,2]
[342225204,1731599451030,-500.0,0.00016712,2]
[342225205,1731599451039,-500.0,0.00016712,2]
[342225206,1731599451049,-500.0,0.00016712,2]
[342225207,1731599451059,-500.0,0.00016712,2]
[342225208,1731599451069,-532.8746444,0.00016712,2]
[342225209,1731599451078,-500.0,0.00016712,2]
[342225210,1731599451088,-500.0,0.00016712,2]
[342225211,1731599451098,-500.0,0.00016712,2]
[342225212,1731599451107,-512.32601403,0.00016712,2]
[342225213,1731599451118,-532.06,0.00016712,2]
[342225214,1731599451131,-500.0,0.00016712,2]
[342225215,1731599451140,-501.33836339,0.00016712,2]
[342225216,1731599451149,-500.0,0.00016712,2]
[342225217,1731599451159,-712.41,0.00016712,2]
[342225218,1731599451168,-500.0,0.00016712,2]
[342225219,1731599451179,-504.73,0.00016712,2]
[342225220,1731599451188,-500.0,0.00016712,2]
[342225221,1731599451198,-500.0,0.00016712,2]
[342225222,1731599451210,-270.18490269,0.00016712,2]
[342225223,1731599451220,-500.0,0.00016712,2]
[342225224,1731599451230,-634.73,0.00016712,2]
[342225225,1731599451241,-1000.0,0.00016712,2]
[342225226,1731599451251,-508.91,0.00016712,2]
[342225227,1731599451261,-500.0,0.00016712,2]
[342225228,1731599451271,-500.0,0.00016712,2]
[342225229,1731599451282,-500.0,0.00016712,2]
[342225230,1731599451292,-501.82110706,0.00016712,2]
[342225231,1731599451301,-500.0,0.00016712,2]
[342225232,1731599451310,-500.0,0.00016712,2]
[342225233,1731599451320,-500.0,0.00016712,2]
[342225234,1731599451332,-242.11639908,0.00016712,2]
[342225235,1731599451341,-241.50969321,0.00016712,2]
[342225236,1731599451351,-511.22616635,0.00016712,2]
[342225237,1731599451360,-500.73540556,0.00016712,2]
[342225238,1731599451369,-500.0,0.00016712,2]
[342225239,1731599451382,-183.70553395,0.00016712,2]
[342225240,1731599451391,-502.36124311,0.00016712,2]
[342225241,1731599451401,-500.0,0.00016712,2]
[342225242,1731599451410,-500.0,0.00016712,2]
[342225243,1731599451420,-500.0,0.00016712,2]
[342225244,1731599451430,-1586.73,0.00016712,2]
[342225245,1731599451440,-500.0,0.00016712,2]
[342225246,1731599451449,-565.89,0.00016712,2]
[342225247,1731599451459,-500.0,0.00016712,2]
[342225248,1731599451469,-500.0,0.00016712,2]
[342225249,1731599451479,-500.0,0.00016712,2]
[342225250,1731599451489,-500.0,0.00016712,2]
[342225251,1731599451499,-500.0,0.00016712,2]
[342225252,1731599451511,-708.92,0.00016712,2]
[342225253,1731599451521,-536.1,0.00016712,2]
[342225254,1731599451532,-500.0,0.00016712,2]
[342225255,1731599451544,-500.0,0.00016712,2]
[342225256,1731599451555,-848.72,0.00016712,2]
[342225257,1731599451564,-500.0,0.00016712,2]
[342225258,1731599451574,-1473.67,0.00016712,2]
[342225259,1731599451583,-500.0,0.00016712,2]
[342225260,1731599451592,-500.0,0.00016712,2]
[342225261,1731599451602,-500.0,0.00016712,2]
[342225262,1731599451612,-500.0,0.00016712,2]
[342225263,1731599451621,-500.0,0.00016712,2]
[342225264,1731599451634,-500.0,0.00016712,2]
[342225265,1731599451644,-392.75840582,0.00016712,2]
[342225266,1731599451653,-597.37,0.00016712,2]
[342225267,1731599451663,-1278.76,0.00016712,2]
[342225268,1731599451673,-500.0,0.00016712,2]
[342225269,1731599451682,-500.0,0.00016712,2]
[342225270,1731599451692,-500.0,0.00016712,2]
[342225271,1731599451701,-500.0,0.00016712,2]
[342225272,1731599451711,-500.0,0.00016712,2]
[342225273,1731599451721,-542.83,0.00016712,2]
[342225274,1731599451731,-500.0,0.00016712,2]
[342225275,1731599451740,-500.0,0.00016712,2]
[342225276,1731599451750,-771.59,0.00016712,2]
[342225277,1731599451760,-500.0,0.00016712,2]
[342225278,1731599451769,-621.67,0.00016712,2]
[342225279,1731599451780,-500.0,0.00016712,2]
[342225280,1731599451791,-500.0,0.00016712,2]
[342225281,1731599451801,-500.0,0.00016712,2]
[342225282,1731599451810,-500.0,0.00016712,2]
[342225283,1731599451820,-500.0,0.00016712,2]
[342225284,1731599451829,-500.0,0.00016712,2]
[342225285,1731599451838,-601.04,0.00016712,2]
[342225286,1731599451848,-500.0,0.00016712,2]